bitfinex/quotes_BTCUSD_20240611
["timestamp","ask_amount","ask_price","bid_price","bid_amount"]
[1718084695390,0.155846,67775.0,67774.0,0.30601182]
[1718084695615,0.231046,67775.0,67774.0,0.30601182]
[1718084696265,0.231046,67775.0,67771.0,0.147554]
[1718084698139,0.000946,67775.0,67772.0,0.147552]
[1718084700917,0.000946,67775.0,67772.0,0.1565705]
[1718084701123,0.000946,67775.0,67772.0,0.147552]
[1718084701955,0.000946,67775.0,67774.0,0.4743675]
[1718084702164,0.000946,67775.0,67774.0,0.61868743]
[1718084702390,0.000946,67775.0,67774.0,0.85827321]
[1718084702599,0.000946,67775.0,67774.0,0.88035441]
[1718084703261,0.000946,67775.0,67774.0,0.76994841]
[1718084703474,0.000946,67775.0,67774.0,0.98073799]
[1718084703707,0.000946,67775.0,67774.0,1.27583599]
[1718084703939,0.000946,67775.0,67774.0,1.30172308]
[1718084704188,0.000946,67775.0,67774.0,1.85458308]
[1718084704417,0.000946,67775.0,67774.0,1.98714089]
[1718084704858,0.000946,67775.0,67774.0,2.1478847]
[1718084705079,0.000946,67775.0,67774.0,1.97322789]
[1718084705301,0.000946,67775.0,67774.0,1.84067008]
[1718084707899,0.0508241,67792.0,67791.0,0.1565305]
[1718084708128,0.0016,67792.0,67791.0,0.2418305]
[1718084708338,0.0016,67792.0,67791.0,0.1565305]
[1718084708578,0.0016,67792.0,67791.0,0.2418305]
[1718084708753,0.0016,67792.0,67791.0,0.3418305]
[1718084709157,0.0016,67792.0,67791.0,0.48615043]
[1718084709567,0.0016,67792.0,67791.0,0.39183193]
[1718084709790,0.0016,67792.0,67791.0,0.48615043]
[1718084711054,0.0016,67792.0,67791.0,0.47713193]
[1718084711277,0.0016,67792.0,67791.0,0.48379997]
[1718084711495,0.0016,67792.0,67791.0,0.76909997]
[1718084711727,0.0016,67792.0,67791.0,0.56909997]
[1718084712373,0.0016,67792.0,67791.0,0.86412397]
[1718084714109,0.0016,67792.0,67791.0,0.77882397]
[1718084714373,0.0016,67792.0,67791.0,0.86412397]
[1718084714822,0.0016,67792.0,67791.0,0.77882397]
[1718084715026,0.0016,67792.0,67791.0,0.86412397]
[1718084716088,0.0016,67792.0,67791.0,1.06412397]
[1718084716292,0.0016,67792.0,67791.0,0.86412397]
[1718084716501,0.0016,67792.0,67791.0,0.79196401]
[1718084718980,0.002546,67792.0,67791.0,0.79196401]
[1718084719389,0.002546,67792.0,67791.0,1.06412397]
[1718084719617,0.002546,67792.0,67791.0,0.86412397]
[1718084720146,0.002546,67792.0,67791.0,1.06412397]
[1718084721382,0.002546,67792.0,67791.0,1.08150141]
[1718084722256,0.002546,67792.0,67791.0,0.88150141]
[1718084723075,0.002546,67792.0,67791.0,1.08150141]
[1718084723444,0.002546,67792.0,67791.0,0.88150141]
[1718084723652,0.002546,67792.0,67791.0,0.79620141]
[1718084723862,0.002546,67792.0,67791.0,0.88150141]
[1718084725779,0.002546,67792.0,67791.0,1.8399365]
[1718084726168,0.00943801,67797.0,67796.0,0.68819817]
[1718084726335,0.00943801,67797.0,67796.0,1.2489181]
[1718084726714,0.00943801,67797.0,67796.0,1.5014001]
[1718084727338,0.00943801,67797.0,67796.0,1.7964021]
[1718084727954,0.00943801,67797.0,67796.0,1.7557021]
[1718084728766,0.00943801,67797.0,67796.0,1.5566021]
[1718084728984,0.00943801,67797.0,67796.0,1.6811201]
[1718084732434,0.00761801,67797.0,67796.0,1.79826212]
[1718084732617,0.00943801,67811.0,67810.0,0.1564885]
[1718084732824,0.00943801,67811.0,67810.0,0.48470843]
[1718084734180,0.00943801,67811.0,67810.0,0.49549801]
[1718084734588,0.00943801,67811.0,67810.0,0.79043901]
[1718084736158,0.00943801,67811.0,67810.0,1.02963901]
[1718084738671,0.00943801,67811.0,67810.0,1.22873901]
[1718084739927,0.00943801,67811.0,67810.0,1.02963901]
[1718084741222,0.00943801,67811.0,67810.0,0.69752051]
[1718084741441,0.15963801,67811.0,67810.0,0.78282051]
[1718084741863,0.00943801,67811.0,67810.0,0.39178993]
[1718084742107,0.25463801,67811.0,67810.0,0.39178993]
[1718084742316,0.25463801,67811.0,67810.0,0.47708993]
[1718084742758,0.26038065,67811.0,67810.0,0.24747]
[1718084743197,0.25553801,67811.0,67810.0,0.24747]
[1718084744095,0.238,67802.0,67801.0,0.14749]
[1718084744797,0.24284264,67802.0,67801.0,0.14749]
[1718084745494,0.24284264,67802.0,67801.0,0.24749]
[1718084745696,0.238,67802.0,67801.0,0.24749]
[1718084745900,0.24284264,67802.0,67801.0,0.24749]
[1718084748029,0.238,67802.0,67801.0,0.24749]
[1718084748435,0.24284264,67802.0,67801.0,0.24749]
[1718084749938,0.238,67802.0,67801.0,0.24749]
[1718084750158,0.238,67802.0,67801.0,0.33279]
[1718084750368,0.238,67802.0,67801.0,0.24749]
[1718084750572,0.238,67802.0,67801.0,0.33279]
[1718084750713,0.2371,67802.0,67801.0,0.33279]
[1718084752646,0.00943801,67811.0,67807.0,0.0076185]
[1718084752868,0.01033801,67811.0,67810.0,0.0853]
[1718084753079,0.01033801,67811.0,67805.0,0.247481]
[1718084753080,0.00574264,67806.0,67805.0,0.247481]
[1718084753203,0.00574264,67806.0,67805.0,0.47710093]
[1718084753418,0.24844264,67806.0,67805.0,0.247481]
[1718084753875,0.2436,67806.0,67805.0,0.247481]
[1718084754124,0.24844264,67806.0,67805.0,0.247481]
[1718084755648,0.2436,67806.0,67805.0,0.247481]
[1718084757230,0.1607,67806.0,67805.0,0.247481]
[1718084757440,0.2333,67809.0,67808.0,0.147475]
[1718084757801,0.1558,67809.0,67808.0,0.147475]
[1718084760519,0.1558,67809.0,67808.0,0.232775]
[1718084762556,0.00943801,67811.0,67810.0,0.14747]
[1718084763003,0.01518065,67811.0,67810.0,0.14747]
[1718084763210,0.00574264,67807.0,67806.0,0.0853]
[1718084763664,0.0009,67807.0,67806.0,0.232779]
[1718084763905,0.0009,67807.0,67806.0,0.332779]
[1718084764114,0.1509,67807.0,67806.0,0.247479]
[1718084765186,0.15,67807.0,67806.0,0.247479]
[1718084765842,0.0009,67809.0,67806.0,0.247479]
[1718084765843,0.0009,67809.0,67808.0,0.147475]
[1718084766038,0.0009,67809.0,67808.0,0.232775]
[1718084766247,0.01033801,67811.0,67810.0,0.14747]
[1718084766466,0.00943801,67811.0,67810.0,0.14747]
[1718084767455,0.00943801,67811.0,67810.0,0.23277]
[1718084767653,0.00943801,67811.0,67810.0,0.14747]
[1718084767883,0.00943801,67811.0,67810.0,0.23277]
[1718084774456,0.00943801,67811.0,67810.0,0.14747]
[1718084774666,0.01518065,67811.0,67810.0,0.23277]
[1718084774910,0.00943801,67811.0,67810.0,0.23277]
[1718084775105,0.00943801,67811.0,67810.0,0.2403885]
[1718084775333,0.00943801,67811.0,67810.0,0.23277]
[1718084778016,0.00943801,67811.0,67810.0,0.64239801]
[1718084778223,0.00943801,67811.0,67810.0,0.74239801]
[1718084781439,0.00943801,67811.0,67810.0,0.39178993]
[1718084781642,0.00943801,67811.0,67810.0,0.29158946]
[1718084781643,0.01033801,67811.0,67810.0,0.29158946]
[1718084781771,0.16413801,67811.0,67810.0,0.24747]
[1718084781976,0.16323801,67811.0,67810.0,0.24747]
[1718084783027,0.16413801,67811.0,67810.0,0.24747]
[1718084783417,0.16898065,67811.0,67810.0,0.24747]
[1718084784772,0.16413801,67811.0,67810.0,0.24747]
[1718084785564,0.16323801,67811.0,67810.0,0.24747]
[1718084787533,0.16413801,67811.0,67810.0,0.24747]
[1718084787887,0.16413801,67811.0,67810.0,0.32392593]
[1718084789313,0.16323801,67811.0,67810.0,0.32392593]
[1718084789690,0.16323801,67811.0,67810.0,0.36804539]
[1718084789894,0.16323801,67811.0,67810.0,0.32392593]
[1718084789895,0.16413801,67811.0,67810.0,0.32392593]
[1718084790761,0.16898065,67811.0,67810.0,0.32392593]
[1718084790965,0.16413801,67811.0,67810.0,0.32392593]
[1718084791614,0.16898065,67811.0,67810.0,0.22392593]
[1718084791761,0.33549107,67811.0,67810.0,0.07645593]
[1718084794976,0.34549107,67811.0,67810.0,0.07645593]
[1718084795208,0.34549107,67811.0,67809.0,0.00086]
[1718084795209,0.64922391,67811.0,67809.0,0.00086]
[1718084795422,0.40486597,67810.0,67809.0,0.00086]
[1718084795651,0.41486597,67810.0,67809.0,0.00086]
[1718084795847,0.40486597,67810.0,67809.0,0.00086]
[1718084796275,0.40486597,67810.0,67809.0,0.07733087]
[1718084797171,0.40486597,67810.0,67809.0,0.07733064]
[1718084798300,0.40486597,67810.0,67809.0,0.00086]
[1718084801153,0.6444859,67810.0,67809.0,0.00086]
[1718084803970,0.6454859,67810.0,67809.0,0.00086]
[1718084804643,0.6464859,67810.0,67809.0,0.00086]
[1718084804846,0.7939559,67810.0,67809.0,0.00086]
[1718084805877,0.7086559,67810.0,67809.0,0.00086]
[1718084806029,0.7939559,67810.0,67809.0,0.00086]
[1718084807472,0.7086559,67810.0,67809.0,0.00086]
[1718084807874,0.7939559,67810.0,67809.0,0.00086]
[1718084811310,0.7086559,67810.0,67809.0,0.00086]
[1718084811545,0.7939559,67810.0,67809.0,0.00086]
[1718084813182,0.7929559,67810.0,67809.0,0.00086]
[1718084813600,0.79116998,67810.0,67809.0,0.00086]
[1718084814096,0.99116998,67810.0,67809.0,0.00086]
[1718084814297,1.01416998,67810.0,67809.0,0.00086]
[1718084814502,1.01516998,67810.0,67809.0,0.00086]
[1718084815248,1.01416998,67810.0,67809.0,0.00086]
[1718084815453,1.01316998,67810.0,67809.0,0.00086]
[1718084815876,1.02416998,67810.0,67809.0,0.00186]
[1718084816841,1.17048991,67810.0,67809.0,0.00186]
[1718084817118,1.17048991,67810.0,67772.0,0.30893647]
[1718084817119,0.57728005,67802.0,67773.0,0.1665]
[1718084817335,0.84030305,67786.0,67773.0,0.1665]
[1718084817519,0.84030305,67786.0,67772.0,0.0762]
[1718084817520,0.98462298,67786.0,67772.0,0.0762]
[1718084817719,0.88932298,67786.0,67772.0,0.0762]
[1718084818007,0.98462298,67786.0,67772.0,0.0762]
[1718084818230,0.97462298,67786.0,67772.0,0.0762]
[1718084818433,0.98462298,67786.0,67772.0,0.0762]
[1718084818622,0.98462298,67786.0,67785.0,0.00117758]
[1718084818848,0.98462298,67786.0,67785.0,0.00017758]
[1718084819048,0.89932298,67786.0,67785.0,0.00017758]
[1718084819223,0.90232298,67786.0,67785.0,0.00017758]
[1718084819966,0.90232298,67786.0,67785.0,0.00117758]
[1718084820417,0.89932298,67786.0,67785.0,0.00117758]
[1718084822309,0.81972298,67786.0,67785.0,0.00117758]
[1718084822516,0.65912298,67786.0,67785.0,0.00117758]
[1718084822945,0.66912298,67786.0,67785.0,0.00117758]
[1718084823419,0.66912298,67786.0,67785.0,0.00017758]
[1718084823653,0.66912298,67786.0,67785.0,0.00117758]
[1718084824106,0.91112298,67786.0,67785.0,0.00117758]
[1718084825007,0.91112298,67786.0,67785.0,0.00017758]
[1718084825220,0.91112298,67786.0,67785.0,0.00117758]
[1718084829373,0.83222298,67786.0,67785.0,0.00117758]
[1718084830889,0.31480305,67786.0,67785.0,0.00117758]
[1718084831312,0.16422333,67787.0,67785.0,0.00117758]
[1718084831512,0.07806963,67786.0,67785.0,0.00117758]
[1718084831726,0.07806963,67786.0,67785.0,0.23557758]
[1718084831727,0.07501291,67786.0,67785.0,0.23557758]
[1718084831939,0.07806963,67786.0,67785.0,0.23557758]
[1718084832917,0.07806963,67786.0,67785.0,0.23457758]
[1718084833340,0.07806963,67786.0,67785.0,0.23557758]
[1718084834145,0.07411291,67786.0,67785.0,0.23557758]
[1718084834348,0.07411291,67789.0,67785.0,0.23557758]
[1718084834549,0.0009,67792.0,67787.0,0.2286]
[1718084834550,0.07411291,67790.0,67787.0,0.2286]
[1718084834798,0.147492,67800.0,67785.0,0.00117758]
[1718084834799,0.0009,67803.0,67792.0,0.147508]
[1718084835000,0.0009,67803.0,67793.0,0.0076185]
[1718084835204,0.07501291,67807.0,67798.0,0.4418]
[1718084835403,0.000946,67810.0,67802.0,0.2402]
[1718084835404,0.05401563,67810.0,67802.0,0.2402]
[1718084835606,0.05401563,67808.0,67805.0,0.2132]
[1718084835928,0.00943801,67811.0,67805.0,0.2132]
[1718084835929,0.05401563,67807.0,67805.0,0.2132]
[1718084837128,0.00943801,67811.0,67805.0,0.2132]
[1718084837129,0.06345364,67811.0,67805.0,0.2132]
[1718084837366,0.00943801,67811.0,67810.0,0.2132]
[1718084837575,0.00943801,67811.0,67810.0,0.4544]
[1718084838009,0.00943801,67811.0,67810.0,0.5544]
[1718084838450,0.00943801,67811.0,67810.0,0.71871993]
[1718084838674,0.00943801,67811.0,67810.0,1.02453126]
[1718084838890,0.00943801,67811.0,67810.0,1.01453126]
[1718084839106,0.00943801,67811.0,67810.0,1.02453126]
[1718084839319,0.00943801,67811.0,67810.0,0.71871993]
[1718084840328,0.00943801,67811.0,67810.0,0.69971993]
[1718084841129,0.00943801,67811.0,67810.0,0.71971993]
[1718084841338,0.00943801,67811.0,67810.0,0.71871993]
[1718084841541,0.00943801,67811.0,67810.0,0.70971993]
[1718084841753,0.00943801,67811.0,67810.0,0.71071993]
[1718084842900,0.00943801,67811.0,67810.0,0.72071993]
[1718084843626,0.00943801,67811.0,67810.0,0.70071993]
[1718084844277,0.00943801,67811.0,67810.0,0.5564]
[1718084845151,0.00943801,67811.0,67810.0,0.5554]
[1718084845566,0.00943801,67811.0,67810.0,0.5564]
[1718084846092,0.00943801,67811.0,67810.0,0.5554]
[1718084846923,0.00943801,67811.0,67810.0,0.5544]
[1718084847122,0.00943801,67811.0,67810.0,0.5554]
[1718084847763,0.00943801,67811.0,67810.0,0.3422]
[1718084848577,0.00943801,67811.0,67810.0,0.3412]
[1718084848824,0.00943801,67811.0,67810.0,0.3422]
[1718084849024,0.00943801,67811.0,67810.0,0.1772]
[1718084849232,0.00943801,67811.0,67810.0,0.0772]
[1718084850205,0.00943801,67811.0,67810.0,0.0762]
[1718084850613,0.00943801,67811.0,67810.0,0.0772]
[1718084850814,0.00943801,67811.0,67810.0,0.001]
[1718084852254,0.25624843,67811.0,67810.0,0.001]
[1718084852661,0.25624843,67811.0,67810.0,0.00186]
[1718084853078,0.26624843,67811.0,67810.0,0.00186]
[1718084853478,0.26624843,67811.0,67810.0,0.00086]
[1718084853892,0.26624843,67811.0,67810.0,0.00186]
[1718084854103,0.25624843,67811.0,67810.0,0.00186]
[1718084854318,0.25624843,67811.0,67810.0,0.00086]
[1718084854536,0.25624843,67811.0,67810.0,0.00186]
[1718084855399,0.25624843,67811.0,67810.0,0.00086]
[1718084857296,0.00943801,67811.0,67810.0,0.23646]
[1718084857468,0.00943801,67811.0,67810.0,0.23746]
[1718084857673,0.00943801,67811.0,67810.0,0.23646]
[1718084858360,0.00943801,67811.0,67810.0,0.38393]
[1718084858822,0.00943801,67811.0,67810.0,0.38493]
[1718084859046,0.00943801,67811.0,67810.0,0.38393]
[1718084859476,0.00943801,67811.0,67810.0,0.38493]
[1718084860727,0.00943801,67811.0,67810.0,0.38393]
[1718084860931,0.00943801,67811.0,67810.0,0.46138731]
[1718084861142,0.00943801,67811.0,67810.0,0.73649682]
[1718084861381,0.00943801,67811.0,67810.0,1.04132526]
[1718084861588,0.00943801,67811.0,67810.0,1.25452526]
[1718084861798,0.00943801,67811.0,67810.0,1.01153568]
[1718084861924,0.00943801,67811.0,67810.0,1.01053568]
[1718084862336,0.00943801,67811.0,67810.0,1.01153568]
[1718084862544,0.00943801,67811.0,67810.0,1.51153568]
[1718084863751,0.00943801,67811.0,67810.0,1.51053568]
[1718084864159,0.00943801,67811.0,67810.0,1.51153568]
[1718084865805,0.00943801,67811.0,67810.0,1.21411575]
[1718084866001,0.00943801,67811.0,67810.0,1.13161575]
[1718084866913,0.00943801,67811.0,67810.0,1.13061575]
[1718084867251,0.00943801,67811.0,67810.0,1.13161575]
[1718084867701,0.00943801,67811.0,67810.0,1.13061575]
[1718084867901,0.00943801,67811.0,67810.0,1.13161575]
[1718084869123,0.00943801,67811.0,67810.0,1.20941575]
[1718084869338,0.00943801,67811.0,67810.0,1.53653568]
[1718084869896,0.00943801,67811.0,67810.0,1.53653066]
[1718084870267,0.00943801,67811.0,67810.0,1.53553066]
[1718084870462,0.00943801,67811.0,67810.0,1.45907837]
[1718084870663,0.00943801,67811.0,67810.0,1.53553064]
[1718084871386,0.00943801,67811.0,67810.0,1.53653064]
[1718084872190,0.00943801,67811.0,67810.0,1.53553064]
[1718084872850,0.00943801,67811.0,67810.0,1.51553064]
[1718084873057,0.00943801,67811.0,67810.0,1.13061071]
[1718084873433,0.00943801,67811.0,67810.0,0.82478227]
[1718084873639,0.00943801,67811.0,67810.0,1.21119337]
[1718084874313,0.00943801,67811.0,67810.0,1.13159337]
[1718084875525,0.00943801,67811.0,67810.0,1.13059337]
[1718084876318,0.00943801,67811.0,67810.0,1.13052509]
[1718084877211,0.00943801,67811.0,67810.0,1.50884502]
[1718084877423,0.00943801,67811.0,67810.0,1.52984502]
[1718084877863,0.00943801,67811.0,67810.0,1.50984502]
[1718084878067,0.00943801,67811.0,67810.0,1.50884502]
[1718084878552,0.00943801,67811.0,67810.0,1.50984502]
[1718084878817,0.00943801,67811.0,67810.0,1.50884502]
[1718084879278,0.00943801,67811.0,67810.0,1.43339275]
[1718084879495,0.00943801,67811.0,67810.0,1.50984555]
[1718084880160,0.00943801,67811.0,67810.0,1.13152562]
[1718084880618,0.09864843,67811.0,67810.0,0.88307181]
[1718084880833,0.09864843,67811.0,67810.0,0.88407181]
[1718084881258,0.17266406,67811.0,67810.0,0.57724452]
[1718084881454,0.41456406,67811.0,67810.0,0.57724452]
[1718084881622,0.41456406,67811.0,67810.0,0.57824452]
[1718084881623,0.55888399,67811.0,67810.0,0.57824452]
[1718084881833,0.55888399,67811.0,67810.0,0.50079172]
[1718084881834,1.2463037,67811.0,67810.0,0.50079172]
[1718084882031,1.5338577,67811.0,67810.0,0.50079172]
[1718084882212,1.5557462,67811.0,67810.0,0.50079172]
[1718084882411,1.5557462,67811.0,67810.0,0.50179172]
[1718084882412,1.4693037,67811.0,67810.0,0.50179172]
[1718084883252,1.4693037,67811.0,67785.0,0.00017758]
[1718084883253,0.0796,67791.0,67785.0,0.00017758]
[1718084883607,0.60992605,67786.0,67785.0,0.00017758]
[1718084883822,0.75424598,67786.0,67785.0,0.00017758]
[1718084884039,0.97724598,67786.0,67785.0,0.00017758]
[1718084884480,1.02115603,67786.0,67785.0,0.00017758]
[1718084884695,0.97724598,67786.0,67785.0,0.00017758]
[1718084885146,0.97724598,67786.0,67785.0,0.00117758]
[1718084885356,0.97724598,67786.0,67785.0,0.00017758]
[1718084885805,1.73456591,67786.0,67785.0,0.00017758]
[1718084886011,0.78037305,67775.0,67774.0,0.02401]
[1718084886237,1.29469298,67775.0,67774.0,0.02401]
[1718084886457,1.31769298,67775.0,67774.0,0.02401]
[1718084886727,1.48985294,67775.0,67774.0,0.02401]
[1718084886974,1.58985294,67775.0,67774.0,0.02401]
[1718084887177,1.68985294,67775.0,67774.0,0.02401]
[1718084888306,1.83200282,67775.0,67774.0,0.02401]
[1718084888523,1.26168105,67771.0,67769.0,0.00086]
[1718084888738,1.42900098,67771.0,67769.0,0.00086]
[1718084889658,1.47460098,67771.0,67769.0,0.00086]
[1718084890786,1.58860098,67771.0,67769.0,0.00086]
[1718084891027,0.90868605,67769.0,67762.0,0.00086]
[1718084891255,1.38920598,67769.0,67762.0,0.00086]
[1718084891500,1.72245183,67769.0,67762.0,0.00086]
[1718084891713,1.17600598,67769.0,67762.0,0.00086]
[1718084891918,1.38920598,67769.0,67762.0,0.00086]
[1718084892574,1.19000598,67769.0,67762.0,0.00086]
[1718084892783,1.54356902,67769.0,67762.0,0.00086]
[1718084893442,1.83868902,67769.0,67762.0,0.00086]
[1718084894104,1.85268902,67769.0,67762.0,0.00086]
[1718084894351,1.83868902,67769.0,67762.0,0.00086]
[1718084894569,1.19000598,67769.0,67762.0,0.00086]
[1718084894784,1.41720598,67769.0,67762.0,0.00086]
[1718084895413,1.40320598,67769.0,67762.0,0.00086]
[1718084895839,1.41720598,67769.0,67762.0,0.00086]
[1718084896688,1.75045183,67769.0,67762.0,0.00086]
[1718084896942,1.88077176,67769.0,67762.0,0.00086]
[1718084897150,1.97477176,67769.0,67762.0,0.00086]
[1718084897530,1.96077176,67769.0,67762.0,0.00086]
[1718084897964,1.97477176,67769.0,67762.0,0.00086]
[1718084898575,1.98067676,67769.0,67762.0,0.00086]
[1718084901072,1.42423683,67769.0,67762.0,0.00086]
[1718084901254,1.31833183,67769.0,67762.0,0.00086]
[1718084901467,0.46910598,67769.0,67762.0,0.00086]
[1718084901687,0.45510598,67769.0,67762.0,0.00086]
[1718084902099,0.46910598,67769.0,67762.0,0.00086]
[1718084902311,0.48310598,67769.0,67762.0,0.00086]
[1718084902532,0.45910598,67769.0,67762.0,0.00086]
[1718084902734,0.44510598,67769.0,67762.0,0.00086]
[1718084902941,0.46510598,67769.0,67762.0,0.00086]
[1718084903171,0.46410598,67769.0,67762.0,0.00086]
[1718084903541,0.45410598,67769.0,67767.0,0.0831]
[1718084904561,0.45410598,67769.0,67762.0,0.00086]
[1718084904759,0.46410598,67769.0,67762.0,0.00086]
[1718084904927,0.65760598,67769.0,67762.0,0.00086]
[1718084905128,0.66760598,67769.0,67762.0,0.00086]
[1718084905468,0.68960598,67769.0,67762.0,0.00086]
[1718084905838,0.69560598,67769.0,67762.0,0.00086]
[1718084906052,0.68060598,67769.0,67762.0,0.00086]
[1718084906342,0.69060598,67769.0,67762.0,0.00086]
[1718084907471,0.89060598,67769.0,67762.0,0.00086]
[1718084907675,0.90160598,67769.0,67762.0,0.00086]
[1718084908007,0.47810598,67769.0,67762.0,0.00086]
[1718084908419,0.48910598,67769.0,67762.0,0.00086]
[1718084908586,0.49910598,67769.0,67762.0,0.00086]
[1718084908993,0.48910598,67769.0,67762.0,0.00086]
[1718084909360,0.49910598,67769.0,67762.0,0.00086]
[1718084909785,0.47810598,67769.0,67762.0,0.00086]
[1718084911409,0.48310598,67769.0,67762.0,0.00086]
[1718084911634,0.48910598,67769.0,67762.0,0.00086]
[1718084911818,0.68910598,67769.0,67762.0,0.00086]
[1718084912040,0.68410598,67769.0,67762.0,0.00086]
[1718084912236,0.69210598,67769.0,67762.0,0.00086]
[1718084912448,0.70010598,67769.0,67762.0,0.00086]
[1718084912647,0.50010598,67769.0,67762.0,0.00086]
[1718084912824,0.54570598,67769.0,67762.0,0.00086]
[1718084913029,0.74570598,67769.0,67762.0,0.00086]
[1718084913235,0.74570598,67769.0,67768.0,0.1535292]
[1718084914686,0.54570598,67769.0,67768.0,0.1535292]
[1718084916247,0.54570598,67769.0,67768.0,0.1543892]
[1718084916565,0.54665198,67769.0,67768.0,0.1543892]
[1718084917530,0.74665198,67769.0,67768.0,0.1543892]
[1718084918598,1.09097191,67769.0,67768.0,0.1543892]
[1718084918754,1.53969191,67769.0,67768.0,0.1543892]
[1718084918958,1.66988549,67769.0,67768.0,0.00132]
[1718084919399,1.65588549,67769.0,67768.0,0.00132]
[1718084919609,1.64788549,67769.0,67768.0,0.00132]
[1718084919831,1.31079905,67763.0,67762.0,0.00086]
[1718084920030,1.84491898,67763.0,67762.0,0.00086]
[1718084920271,1.98599889,67763.0,67762.0,0.00086]
[1718084921826,1.85691898,67763.0,67762.0,0.00086]
[1718084922277,1.86991898,67763.0,67762.0,0.00086]
[1718084925784,1.9135384,67763.0,67762.0,0.00086]
[1718084927048,1.9135384,67763.0,67743.0,0.19986655]
[1718084927049,0.56322605,67753.0,67742.0,0.20843655]
[1718084927286,1.44749994,67753.0,67742.0,0.00857]
[1718084927483,1.47049994,67753.0,67742.0,0.00857]
[1718084927683,1.79759484,67753.0,67742.0,0.00857]
[1718084928330,2.2128324,67753.0,67742.0,0.00857]
[1718084928542,2.2138324,67753.0,67742.0,0.00857]
[1718084929000,2.2018324,67753.0,67742.0,0.00857]
[1718084929213,2.2158324,67753.0,67742.0,0.00857]
[1718084929390,2.25110377,67753.0,67742.0,0.00857]
[1718084929590,2.43710377,67753.0,67742.0,0.00857]
[1718084929781,2.4674251,67753.0,67742.0,0.00857]
[1718084929978,2.61228337,67753.0,67742.0,0.00857]
[1718084930179,2.59828337,67753.0,67742.0,0.00857]
[1718084930382,2.4814251,67753.0,67742.0,0.00857]
[1718084930605,2.61282785,67753.0,67742.0,0.00857]
[1718084930805,1.00602305,67751.0,67742.0,0.00857]
[1718084930997,1.90585781,67751.0,67742.0,0.00857]
[1718084931537,1.21084205,67743.0,67742.0,0.00857]
[1718084931669,2.42317053,67743.0,67742.0,0.00857]
[1718084931870,2.11845688,67743.0,67742.0,0.00857]
[1718084932075,1.90525688,67743.0,67742.0,0.00857]
[1718084932265,2.26277681,67743.0,67742.0,0.00857]
[1718084932671,1.91845688,67743.0,67742.0,0.00857]
[1718084933007,0.98225688,67743.0,67742.0,0.08807]
[1718084933222,0.72883409,67743.0,67742.0,0.08807]
[1718084933423,0.64316198,67743.0,67742.0,0.08807]
[1718084933584,0.14322605,67743.0,67742.0,0.24627]
[1718084933785,0.15315605,67743.0,67742.0,0.39937301]
[1718084933992,0.17615605,67743.0,67742.0,0.39937301]
[1718084934406,0.33047598,67743.0,67742.0,0.39937301]
[1718084934616,0.32047598,67743.0,67742.0,0.39937301]
[1718084934858,0.32747598,67743.0,67742.0,0.39937301]
[1718084935452,0.31047598,67743.0,67742.0,0.39937301]
[1718084935636,0.32047598,67743.0,67742.0,0.39937301]
[1718084935859,0.32047598,67743.0,67742.0,0.16167301]
[1718084936134,0.33047598,67743.0,67742.0,0.16167638]
[1718084936361,0.33847598,67743.0,67742.0,0.00857]
[1718084936775,0.33047598,67743.0,67742.0,0.00857]
[1718084936976,0.33047598,67743.0,67742.0,0.00957]
[1718084937184,0.33047598,67743.0,67742.0,0.01057]
[1718084937378,0.33047598,67743.0,67742.0,0.00857]
[1718084937564,0.54367598,67743.0,67742.0,0.00857]
[1718084937766,0.75867598,67743.0,67742.0,0.00857]
[1718084937947,0.55867598,67743.0,67742.0,0.00857]
[1718084938157,0.60300916,67743.0,67742.0,0.00857]
[1718084939173,0.55867598,67743.0,67742.0,0.00857]
[1718084940168,1.05329591,67743.0,67742.0,0.00857]
[1718084940386,1.09762909,67743.0,67742.0,0.00857]
[1718084940991,1.08962909,67743.0,67742.0,0.00857]
[1718084941199,1.08262909,67743.0,67742.0,0.00857]
[1718084941435,1.09362909,67743.0,67742.0,0.00857]
[1718084941879,0.62271885,67743.0,67742.0,0.00857]
[1718084942085,0.31847598,67743.0,67742.0,0.00857]
[1718084942303,0.29847598,67743.0,67742.0,0.00857]
[1718084942554,0.31847598,67743.0,67742.0,0.00857]
[1718084942772,0.33047598,67743.0,67742.0,0.00857]
[1718084943199,0.53047598,67743.0,67742.0,0.00857]
[1718084943415,0.51947598,67743.0,67742.0,0.00857]
[1718084943618,0.54147598,67743.0,67742.0,0.00857]
[1718084944040,0.70109198,67743.0,67742.0,0.00857]
[1718084944285,0.48909198,67743.0,67742.0,0.00857]
[1718084944893,0.47809198,67743.0,67742.0,0.00857]
[1718084945113,0.48909198,67743.0,67742.0,0.00857]
[1718084945518,0.70229198,67743.0,67742.0,0.00857]
[1718084946381,0.70329198,67743.0,67742.0,0.00857]
[1718084946578,0.69129198,67743.0,67742.0,0.00857]
[1718084946789,0.70229198,67743.0,67742.0,0.00857]
[1718084946995,0.50109198,67743.0,67742.0,0.00857]
[1718084947322,0.47809198,67743.0,67742.0,0.00857]
[1718084947529,0.45809198,67743.0,67742.0,0.00857]
[1718084947761,0.45809198,67743.0,67742.0,0.08617]
[1718084947961,0.44609198,67743.0,67742.0,0.08617]
[1718084948217,0.43509198,67743.0,67742.0,0.08617]
[1718084948525,0.43509198,67743.0,67742.0,0.23957]
[1718084949249,0.28747598,67743.0,67742.0,0.23957]
[1718084949483,0.15515605,67743.0,67742.0,0.23957]
[1718084949684,0.15515605,67743.0,67742.0,0.39267254]
[1718084949900,0.16710205,67743.0,67742.0,0.39267254]
[1718084950407,0.14410205,67743.0,67742.0,0.39267254]
[1718084950836,0.14410205,67743.0,67742.0,0.39367254]
[1718084951037,0.14410205,67743.0,67742.0,0.39467254]
[1718084953675,0.05489163,67743.0,67742.0,0.39467254]
[1718084956355,0.14410205,67743.0,67742.0,0.39467254]
[1718084959638,0.05489163,67743.0,67742.0,0.39467254]
[1718084960077,0.000946,67743.0,67742.0,0.39467254]
[1718084960510,0.000946,67743.0,67742.0,0.40467254]
[1718084960717,0.000946,67743.0,67742.0,0.39467254]
[1718084961362,0.09015642,67743.0,67742.0,0.39467254]
[1718084962281,0.14410205,67743.0,67742.0,0.39467254]
[1718084962487,0.14410205,67743.0,67742.0,0.39367254]
[1718084963705,0.14410205,67743.0,67742.0,0.39467254]
[1718084963914,0.14410205,67743.0,67742.0,0.39267254]
[1718084964480,0.14410205,67743.0,67742.0,0.39467254]
[1718084964926,0.14410205,67743.0,67742.0,0.39367254]
[1718084966216,0.14410205,67743.0,67742.0,0.39267254]